bitfinex/quotes_BTCUSD_20240629
["timestamp","ask_amount","ask_price","bid_price","bid_amount"]
[1719644723982,3.29956105,60971.0,60970.0,0.84078953]
[1719644724212,3.03216413,60971.0,60970.0,0.84078953]
[1719644724364,3.03216413,60971.0,60970.0,1.04078953]
[1719644724365,3.12546413,60971.0,60970.0,1.04078953]
[1719644724563,3.10429755,60971.0,60970.0,1.04078953]
[1719644724762,3.12628425,60971.0,60970.0,1.04078953]
[1719644725369,3.12628431,60971.0,60970.0,1.04078953]
[1719644726600,3.22628431,60971.0,60970.0,1.04078953]
[1719644727345,0.21542623,60971.0,60970.0,1.04078953]
[1719644727548,0.12212623,60971.0,60970.0,1.04078953]
[1719644727749,0.11542623,60971.0,60970.0,1.04078953]
[1719644727953,0.21546079,60971.0,60970.0,1.04078953]
[1719644728309,3.74266479,60971.0,60970.0,1.04078953]
[1719644728693,3.57866479,60971.0,60970.0,1.04078953]
[1719644729534,3.57866479,60971.0,60970.0,0.91977657]
[1719644731355,3.55664347,60971.0,60970.0,0.91977657]
[1719644731561,3.57928812,60971.0,60970.0,0.91977657]
[1719644733142,3.41307012,60971.0,60970.0,0.91977657]
[1719644734558,3.39042547,60971.0,60970.0,0.91977657]
[1719644734718,3.41310218,60971.0,60970.0,0.91977657]
[1719644735434,3.41310218,60971.0,60970.0,0.71977657]
[1719644737682,3.41314229,60971.0,60970.0,0.71977657]
[1719644738250,3.41314229,60971.0,60970.0,0.91977657]
[1719644741071,3.41317436,60971.0,60970.0,0.91977657]
[1719644741415,3.41317436,60971.0,60970.0,0.90674923]
[1719644742644,3.40260136,60971.0,60970.0,0.90674923]
[1719644744311,3.40263157,60971.0,60970.0,0.90674923]
[1719644744514,3.40263157,60971.0,60970.0,0.70674923]
[1719644744761,3.40264058,60971.0,60970.0,0.70674923]
[1719644744973,0.28735263,60971.0,60970.0,0.70674923]
[1719644745624,5.01201963,60971.0,60970.0,0.70123564]
[1719644745831,5.01201963,60971.0,60970.0,0.70732648]
[1719644746245,4.83725363,60971.0,60970.0,0.70732648]
[1719644747257,4.83750732,60971.0,60970.0,0.70732648]
[1719644747462,4.49570012,60971.0,60970.0,0.70732648]
[1719644747699,4.59570012,60971.0,60970.0,0.70732648]
[1719644747860,4.378828,60971.0,60970.0,0.70732648]
[1719644748077,4.4500317,60971.0,60970.0,0.70732648]
[1719644748555,3.99902329,60971.0,60970.0,0.70732648]
[1719644750768,3.976147,60971.0,60970.0,0.70732648]
[1719644750974,3.9990983,60971.0,60970.0,0.70732648]
[1719644754564,3.9991616,60971.0,60970.0,0.70732648]
[1719644754924,3.9645966,60971.0,60970.0,0.70732648]
[1719644756244,4.03588018,60971.0,60970.0,0.70732648]
[1719644756861,3.941582,60971.0,60970.0,0.70732648]
[1719644757062,3.81495856,60971.0,60970.0,0.70732648]
[1719644757277,3.81495799,60971.0,60970.0,0.70732648]
[1719644757409,3.39024499,60971.0,60970.0,0.93585443]
[1719644757609,3.39024499,60971.0,60970.0,1.13585443]
[1719644757866,3.39024499,60971.0,60970.0,0.82832648]
[1719644758630,3.31892076,60971.0,60970.0,0.82832648]
[1719644760495,3.31878215,60971.0,60970.0,0.82832648]
[1719644762027,3.31871715,60971.0,60970.0,0.82832648]
[1719644762971,3.29584,60971.0,60970.0,0.82832648]
[1719644763174,3.31882903,60971.0,60970.0,0.82832648]
[1719644763395,3.29584,60971.0,60970.0,0.82832648]
[1719644763594,3.31882903,60971.0,60970.0,0.82832648]
[1719644766258,3.31973018,60971.0,60970.0,0.82832648]
[1719644766842,3.31973018,60971.0,60970.0,1.02832648]
[1719644769466,3.29668,60971.0,60970.0,1.02832648]
[1719644769669,3.31997577,60971.0,60970.0,1.02832648]
[1719644770126,3.31997577,60971.0,60970.0,0.82832648]
[1719644772923,3.32009012,60971.0,60970.0,0.82832648]
[1719644773484,3.32006456,60971.0,60970.0,0.82832648]
[1719644775790,3.31998789,60971.0,60970.0,0.82832648]
[1719644776288,3.32010072,60971.0,60970.0,0.82832648]
[1719644779078,0.21749572,60971.0,60970.0,0.82832648]
[1719644779275,0.21763387,60971.0,60970.0,0.82832648]
[1719644779963,5.26763387,60971.0,60970.0,0.82832648]
[1719644780104,5.26763387,60971.0,60970.0,1.02832648]
[1719644780470,2.98434887,60971.0,60970.0,1.13022648]
[1719644780587,0.43992187,60971.0,60970.0,1.44815443]
[1719644780790,0.02439887,60971.0,60970.0,1.46313068]
[1719644780993,0.11769887,60971.0,60970.0,1.46313068]
[1719644781231,0.09414,60971.0,60970.0,1.46313068]
[1719644781412,0.09414,60971.0,60970.0,1.44913068]
[1719644782434,0.09414,60971.0,60970.0,1.43513068]
[1719644782839,0.09414,60971.0,60970.0,1.44913068]
[1719644783068,0.09414,60971.0,60970.0,1.46313068]
[1719644784038,0.00084,60971.0,60970.0,1.46313068]
[1719644784254,0.09414,60971.0,60970.0,1.46313068]
[1719644785902,0.61211,60971.0,60970.0,1.34350273]
[1719644786038,1.58013511,60971.0,60970.0,1.34350273]
[1719644786241,1.69740511,60971.0,60970.0,1.34350273]
[1719644786457,1.46350511,60971.0,60970.0,1.34350273]
[1719644786672,1.28856111,60971.0,60970.0,1.34350273]
[1719644786905,1.38186111,60971.0,60970.0,1.34350273]
[1719644788932,1.35895,60971.0,60970.0,1.34350273]
[1719644789177,1.38239877,60971.0,60970.0,1.34350273]
[1719644790351,0.21758877,60971.0,60970.0,1.34350273]
[1719644791397,2.41731077,60971.0,60970.0,1.34350273]
[1719644791877,2.40689777,60971.0,60970.0,1.34350273]
[1719644792239,2.383449,60971.0,60970.0,1.34350273]
[1719644792443,2.40706384,60971.0,60970.0,1.34350273]
[1719644792754,2.383449,60971.0,60970.0,1.34350273]
[1719644792990,2.31376384,60971.0,60970.0,1.34350273]
[1719644793154,2.40706384,60971.0,60970.0,1.34350273]
[1719644793374,2.39406384,60971.0,60970.0,1.34350273]
[1719644793595,1.99439184,60971.0,60970.0,1.34350273]
[1719644795450,1.970777,60971.0,60970.0,1.34350273]
[1719644795599,1.99440788,60971.0,60970.0,1.34350273]
[1719644795939,1.99440788,60971.0,60970.0,1.14350273]
[1719644796343,1.99440788,60971.0,60970.0,1.34350273]
[1719644796689,1.99440788,60971.0,60970.0,1.14350273]
[1719644796889,1.74259293,60971.0,60970.0,1.14350273]
[1719644797091,1.74259293,60971.0,60970.0,1.19895112]
[1719644797505,1.83589293,60971.0,60970.0,0.99895112]
[1719644797706,1.83589293,60971.0,60970.0,1.19895112]
[1719644797902,1.83673293,60971.0,60970.0,0.92230273]
[1719644798110,1.83673293,60971.0,60970.0,0.84290273]
[1719644798322,1.83673293,60971.0,60970.0,0.94010273]
[1719644798728,1.83672784,60971.0,60970.0,0.94010273]
[1719644798951,1.93672784,60971.0,60970.0,0.94010273]
[1719644799122,1.93672784,60971.0,60970.0,1.09384833]
[1719644799326,1.93672784,60971.0,60970.0,0.94010273]
[1719644800162,1.93672784,60971.0,60970.0,1.14010273]
[1719644800693,1.93672784,60971.0,60970.0,0.94010273]
[1719644800842,1.93672784,60971.0,60970.0,1.14010273]
[1719644801933,1.93672784,60971.0,60970.0,1.04290273]
[1719644802103,1.93664073,60971.0,60970.0,1.04290273]
[1719644802321,1.93664073,60971.0,60970.0,0.84290273]
[1719644802467,1.93664073,60971.0,60970.0,1.04290273]
[1719644802468,1.93655275,60971.0,60970.0,1.04290273]
[1719644802666,1.93655275,60971.0,60970.0,0.84290273]
[1719644802868,1.93655275,60971.0,60970.0,1.04290273]
[1719644805299,1.93654263,60971.0,60970.0,1.04290273]
[1719644808692,1.91310205,60971.0,60970.0,1.04290273]
[1719644808845,1.93653126,60971.0,60970.0,1.04290273]
[1719644811484,1.84323126,60971.0,60970.0,1.19664833]
[1719644811690,1.93653126,60971.0,60970.0,1.30134833]
[1719644811893,1.91310205,60971.0,60970.0,1.30134833]
[1719644812296,1.93653779,60971.0,60970.0,1.30134833]
[1719644812495,1.93835107,60971.0,60970.0,1.30134833]
[1719644812698,1.93835107,60971.0,60970.0,1.14760273]
[1719644815131,0.21901222,60971.0,60970.0,1.14760273]
[1719644815998,2.92178422,60971.0,60970.0,1.14760273]
[1719644819515,2.71992622,60971.0,60970.0,1.14760273]
[1719644821011,2.695054,60971.0,60970.0,1.14760273]
[1719644821217,2.71959489,60971.0,60970.0,1.14760273]
[1719644821476,2.695054,60971.0,60970.0,1.14760273]
[1719644821699,2.71945812,60971.0,60970.0,1.30209833]
[1719644822978,2.71945812,60971.0,60970.0,1.10209833]
[1719644823402,2.71945812,60971.0,60970.0,1.14760273]
[1719644824049,2.71923369,60971.0,60970.0,1.14760273]
[1719644826122,2.71923369,60971.0,60970.0,0.94760273]
[1719644826518,2.71923369,60971.0,60970.0,1.14760273]
[1719644827163,2.71923369,60971.0,60970.0,0.94760273]
[1719644827378,2.71923369,60971.0,60970.0,1.14760273]
[1719644827379,2.71927093,60971.0,60970.0,1.14760273]
[1719644827585,2.71927093,60971.0,60970.0,1.30209833]
[1719644827797,2.56387193,60971.0,60970.0,1.30209833]
[1719644828597,2.15722393,60971.0,60970.0,1.30209833]
[1719644829005,1.88364793,60971.0,60970.0,1.30209833]
[1719644829321,1.75250993,60971.0,60970.0,1.30209833]
[1719644830067,0.91530593,60971.0,60970.0,1.30209833]
[1719644830408,0.891089,60971.0,60970.0,1.30209833]
[1719644830614,0.91536234,60971.0,60970.0,1.30209833]
[1719644831432,0.78027234,60971.0,60970.0,1.30209833]
[1719644832682,0.74790234,60971.0,60970.0,1.30209833]
[1719644833834,0.74797001,60971.0,60970.0,1.30209833]
[1719644835002,0.45117901,60971.0,60970.0,1.30209833]
[1719644836484,0.21848101,60971.0,60970.0,1.30209833]
[1719644836785,0.31908701,60971.0,60970.0,1.30209833]
[1719644836994,0.294746,60971.0,60970.0,1.30209833]
[1719644837196,0.31902625,60971.0,60970.0,1.30209833]
[1719644838243,0.22572325,60971.0,60970.0,1.30209833]
[1719644838468,0.31902325,60971.0,60970.0,1.30209833]
[1719644840332,0.31915947,60971.0,60970.0,1.30209833]
[1719644840545,0.21855647,60971.0,60970.0,1.30209833]
[1719644840754,0.32031547,60971.0,60970.0,1.30209833]
[1719644841940,0.32031547,60971.0,60970.0,1.30204038]
[1719644843646,0.32031169,60971.0,60970.0,1.30204038]
[1719644844063,0.22701272,60971.0,60970.0,1.30204038]
[1719644844205,0.21855372,60971.0,60970.0,1.30204038]
[1719644844413,0.32031072,60971.0,60970.0,1.30204038]
[1719644844637,0.22701072,60971.0,60970.0,1.50204038]
[1719644844849,0.32409372,60971.0,60970.0,1.50204038]
[1719644845005,0.32407537,60971.0,60970.0,1.50204038]
[1719644845205,0.29968,60971.0,60970.0,1.50204038]
[1719644845645,0.10084,60971.0,60970.0,1.50204038]
[1719644845863,0.09414,60971.0,60970.0,1.50204038]
[1719644846062,0.19414,60971.0,60970.0,1.50204038]
[1719644847448,0.09414,60971.0,60970.0,1.50204038]
[1719644848504,0.00084,60971.0,60970.0,1.50204038]
[1719644848916,0.09414,60971.0,60970.0,1.50204038]
[1719644849745,0.11892954,60971.0,60970.0,1.50204038]
[1719644849995,0.19414,60971.0,60970.0,1.50204038]
[1719644850120,0.21893151,60971.0,60970.0,1.50204038]
[1719644850746,0.19414,60971.0,60970.0,1.50204038]
[1719644850959,0.09414,60971.0,60970.0,1.50204038]
[1719644851381,0.00084,60971.0,60970.0,1.50204038]
[1719644851589,0.00084,60971.0,60970.0,1.63364062]
[1719644851762,0.09414,60971.0,60970.0,1.43364062]
[1719644851965,0.09414,60971.0,60970.0,1.63364062]
[1719644852377,0.09414,60971.0,60970.0,1.80684062]
[1719644852378,0.00084,60971.0,60970.0,1.80684062]
[1719644852582,0.09414,60971.0,60970.0,1.79284062]
[1719644852981,0.00084,60971.0,60970.0,1.80684062]
[1719644853602,0.00084,60971.0,60970.0,2.00684062]
[1719644853966,0.14780252,60991.0,60987.0,0.83160024]
[1719644854184,0.467,61006.0,60987.0,1.33733922]
[1719644854185,0.09414,60988.0,60987.0,1.33733922]
[1719644854588,0.09414,60988.0,60987.0,1.34340258]
[1719644854920,0.09414,60988.0,60987.0,1.50573629]
[1719644855514,0.09414,60988.0,60987.0,1.51973629]
[1719644855859,0.09414,60988.0,60987.0,1.53373629]
[1719644859030,0.09414,60988.0,60987.0,0.85100258]
[1719644859031,1.059702,60988.0,60987.0,0.85100258]
[1719644859241,3.947749,60988.0,60987.0,0.82800258]
[1719644859375,4.04498,60988.0,60987.0,0.82800258]
[1719644859575,3.655021,60988.0,60987.0,0.82193922]
[1719644859781,3.67839163,60988.0,60987.0,0.82799236]
[1719644860183,3.67839163,60988.0,60987.0,0.81399236]
[1719644860384,3.67839163,60988.0,60987.0,0.79999236]
[1719644860783,3.67839163,60988.0,60987.0,0.81399236]
[1719644860997,2.61797963,60988.0,60987.0,0.83699236]
[1719644861217,2.594609,60988.0,60987.0,0.83699236]
[1719644861419,2.594609,60988.0,60987.0,0.85099236]
[1719644862725,2.687452,60988.0,60987.0,0.85099236]
[1719644864609,2.687452,60988.0,60987.0,0.91671636]
[1719644864851,2.466952,60988.0,60987.0,0.91671636]
[1719644865029,2.466952,60988.0,60987.0,1.11671636]
[1719644865232,2.466952,60988.0,60987.0,0.91671636]
[1719644865799,2.407916,60988.0,60987.0,0.91671636]
[1719644866622,2.396547,60988.0,60987.0,0.91671636]
[1719644868536,2.35548,60988.0,60987.0,0.91671636]
[1719644869435,2.253773,60988.0,60987.0,1.11671636]
[1719644871856,2.2772587,60988.0,60987.0,1.11671636]
[1719644873907,2.2772587,60988.0,60987.0,1.24988562]
[1719644874080,1.9025637,60988.0,60987.0,1.44988562]
[1719644875882,1.90253173,60988.0,60987.0,1.44988562]
[1719644876081,1.65136018,60988.0,60987.0,1.44988562]
[1719644876291,1.65136018,60988.0,60987.0,1.44383248]
[1719644876292,1.74466006,60988.0,60987.0,1.44383248]
[1719644876492,1.81933261,60988.0,60987.0,1.44987213]
[1719644877112,1.795879,60988.0,60987.0,1.44987213]
[1719644877306,1.81926394,60988.0,60987.0,1.44987213]
[1719644878616,1.795879,60988.0,60987.0,1.44987213]
[1719644878885,1.81921368,60988.0,60987.0,1.44987213]
[1719644879014,1.795879,60988.0,60987.0,1.44987213]
[1719644879217,1.81921357,60988.0,60987.0,1.44987213]
[1719644880188,1.81921357,60988.0,60987.0,1.44383248]
[1719644880403,1.81921357,60988.0,60987.0,1.24987213]
[1719644880630,1.81921357,60988.0,60987.0,1.44987213]
[1719644881394,1.81909066,60988.0,60987.0,1.44987213]
[1719644882070,1.81909066,60988.0,60987.0,2.44987213]
[1719644883319,2.18526666,60988.0,60987.0,2.31670287]
[1719644883518,2.26728366,60988.0,60987.0,2.31670287]
[1719644884698,2.26732724,60988.0,60987.0,2.31670287]
[1719644885212,2.18531024,60988.0,60987.0,2.31670287]
[1719644887265,1.08756524,60988.0,60987.0,2.11670287]
[1719644887469,1.08756524,60988.0,60987.0,2.47903658]
[1719644887829,1.08767029,60988.0,60987.0,2.47903658]
[1719644887976,1.08767048,60988.0,60987.0,2.47903658]
[1719644891083,1.08767048,60988.0,60987.0,2.27903658]
[1719644891084,0.97101,60988.0,60987.0,2.27903658]
[1719644891278,3.185737,60990.0,60989.0,0.13160024]
[1719644891492,0.2327,60991.0,60990.0,0.13160024]
[1719644891706,0.34926784,60991.0,60990.0,0.31693922]
[1719644891918,0.34926784,60991.0,60990.0,0.3229743]
[1719644892324,0.34926784,60991.0,60990.0,0.3311943]
[1719644893149,4.58266984,60991.0,60990.0,0.3311943]
[1719644893382,4.70325984,60991.0,60990.0,0.3311943]
[1719644893580,4.26333484,60991.0,60990.0,0.3311943]
[1719644894019,4.26333484,60991.0,60990.0,0.3451943]
[1719644894730,4.26333484,60991.0,60990.0,0.3591943]
[1719644894932,4.26316642,60991.0,60990.0,0.3591943]
[1719644895333,4.22858642,60991.0,60990.0,0.3591943]
[1719644895945,3.78442342,60991.0,60990.0,0.3591943]
[1719644896146,3.25127042,60991.0,60990.0,0.3591943]
[1719644896325,2.93855342,60991.0,60990.0,0.3591943]
[1719644896560,2.93855342,60991.0,60990.0,0.5591943]
[1719644897207,2.78985342,60991.0,60990.0,0.5591943]
[1719644897412,2.78985342,60991.0,60990.0,0.3591943]
[1719644897612,2.78985318,60991.0,60990.0,0.3591943]
[1719644898040,2.67349618,60991.0,60990.0,0.3591943]
[1719644898318,2.67349618,60991.0,60990.0,0.5591943]
[1719644898516,2.11672618,60991.0,60990.0,0.5591943]
[1719644898734,2.11672618,60991.0,60990.0,0.3591943]
[1719644900421,2.11672618,60991.0,60990.0,0.5591943]
[1719644900649,1.85999418,60991.0,60990.0,0.71671232]
[1719644900997,1.7831883,60991.0,60990.0,0.71671232]
[1719644901369,1.7831883,60991.0,60990.0,0.91671232]
[1719644901666,1.7831883,60991.0,60990.0,1.03871232]
[1719644901867,1.7567853,60991.0,60990.0,1.03871232]
[1719644903277,1.7399603,60991.0,60990.0,1.03871232]
[1719644904102,1.73987791,60991.0,60990.0,1.03871232]
[1719644904659,1.73987787,60991.0,60990.0,0.87637861]
[1719644904777,1.50779987,60991.0,60990.0,0.87637861]
[1719644907150,1.48453,60991.0,60990.0,0.87637861]
[1719644907351,1.50792875,60991.0,60990.0,0.87637861]
[1719644908618,1.41462875,60991.0,60990.0,0.87637861]
[1719644908819,1.50792875,60991.0,60990.0,0.98013745]
[1719644910486,1.50766475,60991.0,60990.0,0.98013745]
[1719644913751,1.829763,60991.0,60990.0,0.98013745]
[1719644914054,1.85290471,60991.0,60990.0,0.98013745]
[1719644914246,1.829763,60991.0,60990.0,0.98013745]
[1719644914407,1.85290931,60991.0,60990.0,0.98013745]
[1719644914746,1.85290931,60991.0,60990.0,0.87637861]
[1719644916930,1.829763,60991.0,60990.0,0.87637861]
[1719644917093,1.85265722,60991.0,60990.0,0.87637861]
[1719644920295,1.829763,60991.0,60990.0,0.87637861]
[1719644920496,1.85257248,60991.0,60990.0,0.75437861]
[1719644921237,1.85257248,60991.0,60990.0,0.55437861]
[1719644923565,1.8524429,60991.0,60990.0,0.55437861]
[1719644923973,1.829763,60991.0,60990.0,0.55437861]
[1719644924175,1.85244289,60991.0,60990.0,0.55437861]
[1719644926732,1.829763,60991.0,60990.0,0.55437861]
[1719644927094,1.85267632,60991.0,60990.0,0.55437861]
[1719644927264,1.85267632,60991.0,60990.0,0.55530261]
[1719644927471,1.85351632,60991.0,60990.0,0.55530261]
[1719644929165,1.85376752,60991.0,60990.0,0.55530261]
[1719644931777,1.85376752,60991.0,60990.0,0.55289609]
[1719644933492,1.85377388,60991.0,60990.0,0.55289609]
[1719644934094,3.03441288,60991.0,60990.0,0.55289609]
[1719644934355,2.64450788,60991.0,60990.0,0.75289609]
[1719644934544,2.60849988,60991.0,60990.0,0.55289609]
[1719644934710,2.52739588,60991.0,60990.0,0.55289609]
[1719644935730,2.43872888,60991.0,60990.0,0.55289609]
[1719644936603,2.415558,60991.0,60990.0,0.55289609]
[1719644936812,2.43878031,60991.0,60990.0,0.55289609]
[1719644937018,2.27853131,60991.0,60990.0,0.55289609]
[1719644937240,2.27853131,60991.0,60990.0,0.75289609]
[1719644940310,2.2785651,60991.0,60990.0,0.75289609]
[1719644942573,2.255309,60991.0,60990.0,0.75289609]
[1719644942801,2.27890525,60991.0,60990.0,0.75289609]
[1719644942963,2.255309,60991.0,60990.0,0.75289609]
[1719644943164,2.27890525,60991.0,60990.0,0.75289609]
[1719644943487,2.09441757,60991.0,60990.0,0.91392742]
[1719644945392,2.04963025,60991.0,60990.0,0.91392742]
[1719644945614,2.03856625,60991.0,60990.0,0.91392742]
[1719644945806,2.03869332,60991.0,60990.0,0.91392742]
[1719644946347,2.03869332,60991.0,60990.0,0.71392742]
[1719644947379,2.03869332,60991.0,60990.0,0.55289609]
[1719644947585,2.03869332,60991.0,60990.0,0.75289609]
[1719644947805,2.03869332,60991.0,60990.0,0.55289609]
[1719644948230,2.03869332,60991.0,60990.0,0.75289609]
[1719644948631,0.11702332,60991.0,60990.0,0.75289609]
[1719644949012,2.23931853,60991.0,60990.0,0.75289609]
[1719644949839,2.15191153,60991.0,60990.0,0.75289609]
[1719644950085,2.05056853,60991.0,60990.0,0.55289609]
[1719644951216,2.05056853,60991.0,60990.0,0.75289609]
[1719644951614,2.05056853,60991.0,60990.0,0.55289609]
[1719644952217,2.026952,60991.0,60990.0,0.55289609]
[1719644952431,1.95739668,60991.0,60990.0,0.75289609]
[1719644952746,1.730581,60991.0,60990.0,0.9152298]
[1719644952859,1.75432366,60991.0,60990.0,0.9152298]
[1719644953490,1.69406966,60991.0,60990.0,0.9152298]
[1719644954094,1.69406966,60991.0,60990.0,0.75289609]
[1719644954297,1.69406966,60991.0,60990.0,0.87469609]
[1719644954906,0.11704266,60991.0,60990.0,0.87469609]
[1719644955293,3.14181766,60991.0,60990.0,0.87469609]
[1719644955493,2.87179459,60991.0,60990.0,0.87469609]
[1719644956718,2.80884659,60991.0,60990.0,0.87469609]
[1719644957557,2.80884659,60991.0,60990.0,0.99837219]
[1719644957998,2.80884659,60991.0,60990.0,0.87469609]
[1719644958851,2.80864648,60991.0,60990.0,0.87469609]
[1719644962115,2.785127,60991.0,60990.0,0.87469609]
[1719644962258,2.80860241,60991.0,60990.0,0.87469609]
[1719644962465,2.785967,60991.0,60990.0,0.87469609]
[1719644962675,2.80945264,60991.0,60990.0,0.87469609]
[1719644965105,2.80945264,60991.0,60990.0,0.87024555]
[1719644965309,2.80954959,60991.0,60990.0,0.87024555]
[1719644967660,2.80954959,60991.0,60990.0,0.94630057]
[1719644968284,2.80954959,60991.0,60990.0,0.87024555]
[1719644968490,2.785967,60991.0,60990.0,0.87024555]
[1719644968739,2.80960953,60991.0,60990.0,0.87024555]
[1719644971798,2.80960537,60991.0,60990.0,0.87024555]
[1719644974337,3.37875737,60991.0,60990.0,0.87024555]
[1719644974536,3.71038637,60991.0,60990.0,0.87024555]
[1719644974745,3.36712037,60991.0,60990.0,0.87024555]
[1719644975166,3.36705082,60991.0,60990.0,0.87024555]
[1719644975582,3.36706145,60991.0,60990.0,0.87024555]
[1719644978107,3.36706145,60991.0,60990.0,0.74844555]
[1719644978340,3.343482,60991.0,60990.0,0.74844555]
[1719644978544,3.36715059,60991.0,60990.0,0.74844555]
[1719644981748,3.36725457,60991.0,60990.0,0.74844555]
[1719644982675,3.36725457,60991.0,60990.0,0.54844555]
[1719644982881,3.36725457,60991.0,60990.0,0.74844555]
[1719644984916,3.343482,60991.0,60990.0,0.74844555]
[1719644985107,3.36720968,60991.0,60990.0,0.74844555]
[1719644985467,3.36720893,60991.0,60990.0,0.74844555]
[1719644987835,3.343482,60991.0,60990.0,0.74844555]
[1719644988143,3.36731973,60991.0,60990.0,0.74844555]
[1719644988447,3.36732153,60991.0,60990.0,0.74844555]
[1719644988847,3.36732153,60991.0,60990.0,0.54844555]
[1719644995439,0.11797953,60991.0,60990.0,0.54844555]
[1719644995591,3.90347253,60991.0,60990.0,0.54844555]
[1719644996020,3.90347253,60991.0,60990.0,0.74844555]
[1719644996627,3.88418853,60991.0,60990.0,0.74844555]
[1719644997647,3.54092353,60991.0,60990.0,0.74844555]
[1719644997863,3.23914653,60991.0,60990.0,0.80128546]
[1719644998039,3.08777553,60991.0,60990.0,0.89928546]
[1719644999234,3.08777553,60991.0,60990.0,0.84511774]
[1719645000131,3.01347553,60991.0,60990.0,0.96151774]
[1719645000335,2.91695953,60991.0,60990.0,0.96151774]
[1719645000540,2.89312,60991.0,60990.0,0.96151774]
[1719645001128,2.361855,60991.0,60990.0,0.96151774]
[1719645003780,0.00084,60991.0,60990.0,1.06022361]
[1719645003983,0.00084,60991.0,60990.0,1.23342361]
[1719645004121,0.00084,60991.0,60990.0,1.43342361]
[1719645004326,0.00084,60991.0,60990.0,1.23342361]
[1719645004720,0.00084,60991.0,60990.0,1.20542361]
[1719645005029,0.00084,60991.0,60990.0,1.21942361]
[1719645005222,0.00084,60991.0,60990.0,1.23342361]
[1719645005487,0.00084,60991.0,60990.0,1.21942361]
[1719645005862,0.00084,60991.0,60990.0,1.23342361]
[1719645006195,0.00084,60991.0,60990.0,1.21942361]
[1719645006405,0.00084,60991.0,60990.0,1.23342361]
[1719645006688,0.00084,60991.0,60990.0,1.21942361]
[1719645006848,0.00084,60991.0,60990.0,1.23342361]
[1719645007247,0.00084,60991.0,60990.0,1.21942361]
[1719645007805,0.00084,60991.0,60990.0,1.23342361]
[1719645009456,0.00838,61011.0,61010.0,0.9]
[1719645009666,0.10168,61011.0,61010.0,1.18621678]
[1719645009885,0.91483271,61011.0,61010.0,0.99174718]
[1719645010153,0.95384171,61011.0,61010.0,0.86786938]
[1719645010822,0.95384171,61011.0,61010.0,0.88186938]
[1719645011289,0.94884171,61011.0,61010.0,1.08186938]
[1719645011497,0.87790371,61011.0,61010.0,1.10486938]
[1719645011727,0.87790371,61011.0,61010.0,0.91886938]
[1719645011919,1.63311971,61011.0,61010.0,0.91886938]
[1719645012126,1.78628871,61011.0,61010.0,0.91886938]
[1719645012394,1.84085171,61011.0,61010.0,0.91886938]
[1719645012566,1.61086226,61011.0,61010.0,1.11886938]
[1719645012977,1.19342626,61011.0,61010.0,1.11886938]
[1719645013177,1.28672626,61011.0,61010.0,1.11886938]
[1719645015620,1.264768,61011.0,61010.0,1.11886938]
[1719645015736,1.28662644,61011.0,61010.0,1.11886938]
[1719645017193,1.28662644,61011.0,61010.0,0.91886938]
[1719645017378,1.39912644,61011.0,61010.0,0.91886938]
[1719645017795,1.28662644,61011.0,61010.0,0.91886938]
[1719645019075,1.28654714,61011.0,61010.0,0.91886938]
[1719645019656,1.28654714,61011.0,61010.0,0.98457038]
[1719645022308,1.28677314,61011.0,61010.0,1.18457038]
[1719645022655,1.30877828,61011.0,61010.0,1.18457038]
[1719645023150,1.21547828,61011.0,61010.0,1.18457038]
[1719645023337,1.30877828,61011.0,61010.0,1.18457038]
[1719645025338,1.28677314,61011.0,61010.0,1.18457038]
[1719645025541,1.264768,61011.0,61010.0,1.18457038]
[1719645025711,1.28664568,61011.0,61010.0,1.18457038]
[1719645025911,1.264768,61011.0,61010.0,1.18549438]
[1719645026117,1.28663912,61011.0,61010.0,1.18549438]
[1719645027039,0.65162612,61011.0,61010.0,1.18549438]
[1719645028692,0.34496083,61011.0,61010.0,1.18549438]
[1719645030059,0.34496083,61011.0,61010.0,1.26274861]
[1719645030890,0.25166083,61011.0,61010.0,1.26274861]
[1719645031103,0.09334022,61011.0,61010.0,1.26274861]
[1719645031312,0.84563222,61011.0,61010.0,1.35644861]
[1719645031725,0.84563222,61011.0,61010.0,1.35855268]
[1719645031976,0.68163222,61011.0,61010.0,1.35855268]
[1719645032568,0.68163222,61011.0,61010.0,1.06485268]
[1719645032787,0.68163222,61011.0,61010.0,1.26485268]
[1719645033938,1.41184222,61011.0,61010.0,1.26485268]
[1719645034138,0.09334022,61011.0,61010.0,1.26485268]
[1719645034306,1.41184222,61011.0,61010.0,1.26485268]
[1719645034893,1.39547022,61011.0,61010.0,1.26485268]
[1719645036580,1.39547022,61011.0,61010.0,1.18759845]
[1719645036855,1.4152622,61011.0,61010.0,1.18759845]
[1719645037000,0.7985052,61011.0,61010.0,1.18759845]
[1719645038387,0.77871322,61011.0,61010.0,1.18759845]
[1719645038516,0.79847201,61011.0,61010.0,1.18759845]
[1719645039668,0.79847201,61011.0,61010.0,1.25629489]
[1719645040439,0.70517201,61011.0,61010.0,1.25629489]
[1719645040642,0.79847201,61011.0,61010.0,1.25629489]
[1719645041835,0.79847462,61011.0,61010.0,1.25629489]
[1719645042463,0.79847462,61011.0,61010.0,1.18759845]
[1719645042618,0.79847462,61011.0,61010.0,1.18029984]
[1719645045181,0.79847537,61011.0,61010.0,1.18029984]
[1719645045954,0.79847537,61011.0,61010.0,0.98029984]
[1719645046157,0.79847537,61011.0,61010.0,1.18029984]
[1719645048269,0.79846946,61011.0,61010.0,1.18029984]
[1719645051645,0.79851926,61011.0,61010.0,1.29389984]
[1719645051843,0.79851926,61011.0,61010.0,1.44509763]
[1719645052059,1.35936026,61011.0,61010.0,1.29389984]
[1719645052283,1.33148126,61011.0,61010.0,1.29389984]
[1719645052704,0.58696526,61011.0,61010.0,1.38119984]
[1719645052972,0.43826526,61011.0,61010.0,1.38119984]
[1719645053180,0.43826526,61011.0,61010.0,1.53175763]
[1719645053623,0.35719126,61011.0,61010.0,1.53175763]
[1719645054229,0.35719126,61011.0,61010.0,1.51775763]
[1719645054372,0.35719126,61011.0,61010.0,1.53175763]
[1719645054775,0.33738522,61011.0,61010.0,1.53175763]
[1719645055018,0.35733055,61011.0,61010.0,1.53175763]
[1719645055402,0.35733055,61011.0,61010.0,1.51775763]
[1719645055606,2.34644655,61011.0,61010.0,1.38119984]
[1719645056080,2.88765055,61011.0,61010.0,1.38119984]
[1719645056250,2.88765055,61011.0,61010.0,1.36719984]
[1719645056462,2.88765055,61011.0,61010.0,1.38119984]
[1719645058050,2.88740712,61011.0,61010.0,1.38119984]
[1719645060135,2.88824712,61011.0,61010.0,1.38119984]
[1719645061114,2.86854522,61011.0,61010.0,1.38119984]
[1719645061312,2.79502525,61011.0,61010.0,1.53175763]
[1719645061508,2.76689225,61011.0,61010.0,1.65613566]
[1719645061923,2.21981222,61011.0,61010.0,1.65613566]
[1719645062121,2.21981222,61011.0,61010.0,1.64213566]
[1719645062324,2.00088022,61011.0,61010.0,1.81533566]
[1719645062524,2.00088022,61011.0,61010.0,1.84583566]
[1719645062923,2.00088022,61011.0,61010.0,1.83183566]
[1719645063121,2.00088022,61011.0,61010.0,1.84583566]